fUSD/lending_fUSD_20250616
["ID","MTS","AMOUNT","RATE_DAILY","PERIOD"]
[366052267,1750036238612,-152.52,0.00016238,2]
[366052268,1750036238623,-449.8648202,0.00016241,2]
[366052269,1750036238633,-166.20041602,0.0001625,2]
[366052270,1750036238644,-2030.296672,0.00016254,2]
[366052271,1750036238654,-449.8648202,0.00016256,2]
[366052272,1750036238664,-305.15,0.00016257,2]
[366052273,1750036238674,-449.8648202,0.0001627,2]
[366052274,1750036238684,-202.0,0.00016275,4]
[366052275,1750036238695,-166.20041602,0.00016282,2]
[366052276,1750036238705,-449.8648202,0.00016285,2]
[366052277,1750036238715,-449.8648202,0.00016299,2]
[366052278,1750036238726,-167.0,0.000163,2]
[366052279,1750036238736,-167.0,0.000163,2]
[366052280,1750036238747,-167.0,0.000163,2]
[366052281,1750036238758,-167.0,0.000163,2]
[366052282,1750036238769,-167.0,0.000163,3]
[366052283,1750036238780,-167.0,0.000163,3]
[366052284,1750036238792,-167.0,0.000163,3]
[366052285,1750036238803,-167.0,0.000163,2]
[366052286,1750036238817,-169.33,0.000163,2]
[366052287,1750036238828,-2105.41764886,0.00016309,2]
[366052288,1750036238839,-166.20041602,0.00016313,2]
[366052289,1750036238850,-449.8648202,0.00016314,2]
[366052290,1750036238860,-327.3,0.00016317,2]
[366052291,1750036238870,-327.3,0.00016317,2]
[366052292,1750036238881,-830.95,0.00016317,2]
[366052293,1750036238892,-500.0,0.00016325,2]
[366052294,1750036238903,-500.0,0.00016325,2]
[366052295,1750036238913,-500.0,0.00016325,2]
[366052296,1750036238924,-500.0,0.00016325,2]
[366052297,1750036238935,-500.0,0.00016325,2]
[366052298,1750036238945,-568.22384741,0.00016325,2]
[366052299,1750036238955,-52084.6690362,0.00016326,2]
[366052300,1750036238966,-4089.4713104,0.00016326,2]
[366052301,1750036238976,-1452.1900466,0.00016326,2]
[366052302,1750036238987,-159005.3028141,0.00016327,2]
[366052303,1750036238997,-11946.4944329,0.00016327,2]
[366052304,1750036239007,-4837.6082578,0.00016327,2]
[366052305,1750036239018,-449.8648202,0.00016328,2]
[366052306,1750036239028,-248663.30230379,0.00016328,2]
[366052307,1750036239038,-151.0,0.00016328,2]
[366052308,1750036239049,-302.95,0.00016328,2]
[366052309,1750036239059,-251.15688542,0.00016337,2]
[366052310,1750036239070,-500.0,0.00016337,2]
[366052311,1750036239080,-471.33491096,0.00016337,2]
[366052313,1750036239091,-163.58545108,0.00016338,2]
[366052315,1750036239101,-976.17814421,0.00016338,2]
[366052317,1750036239111,-4803.3282,0.00016338,2]
[366052318,1750036239121,-5000.0,0.00016338,2]
[366052319,1750036239131,-449.8648202,0.00016342,2]
[366052320,1750036239142,-166.20041602,0.00016345,2]
[366052321,1750036239152,-338.0,0.00016356,2]
[366052322,1750036239162,-976.17814412,0.00016356,2]
[366052323,1750036239173,-449.8648202,0.00016357,2]
[366052324,1750036239183,-2183.31810187,0.00016364,2]
[366052325,1750036239193,-449.8648202,0.00016371,2]
[366052326,1750036239204,-976.17814412,0.00016374,2]
[366052327,1750036239214,-166.20041602,0.00016376,2]
[366052328,1750036239224,-449.8648202,0.00016386,2]
[366052329,1750036239235,-976.17814412,0.00016393,2]
[366052330,1750036239244,-449.8648202,0.000164,2]
[366052331,1750036239255,-166.20041602,0.00016408,2]
[366052332,1750036239265,-976.17814412,0.00016411,2]
[366052333,1750036239275,-2264.10087164,0.00016419,2]
[366052334,1750036239285,-327.3,0.00016428,2]
[366052335,1750036239295,-327.3,0.00016428,2]
[366052336,1750036239305,-327.3,0.00016428,2]
[366052337,1750036239315,-830.95,0.00016428,2]
[366052338,1750036239324,-976.17814412,0.00016429,2]
[366052339,1750036239335,-789.583923,0.00016431,2]
[366052340,1750036239346,-224.87,0.00016437,2]
[366052341,1750036239357,-643.0,0.00016438,2]
[366052342,1750036239367,-4642.906556,0.00016438,2]
[366052343,1750036239377,-158.856192,0.00016438,2]
[366052344,1750036239387,-156.829418,0.00016438,2]
[366052345,1750036239397,-751.09,0.00016438,2]
[366052346,1750036239407,-161.18440225,0.00016438,2]
[366052347,1750036239418,-151.0,0.00016438,2]
[366052348,1750036239429,-151.0,0.00016438,2]
[366052349,1750036239439,-490.0,0.00016438,2]
[366052350,1750036239450,-490.0,0.00016438,2]
[366052351,1750036239460,-490.0,0.00016438,2]
[366052352,1750036239470,-490.0,0.00016438,2]
[366052353,1750036239479,-151.0,0.00016438,2]
[366052354,1750036239489,-490.0,0.00016438,2]
[366052355,1750036239500,-151.0,0.00016438,2]
[366052356,1750036239510,-151.0,0.00016438,2]
[366052357,1750036239520,-490.0,0.00016438,2]
[366052358,1750036239530,-151.0,0.00016438,2]
[366052359,1750036239539,-490.0,0.00016438,2]
[366052360,1750036239549,-151.0,0.00016438,2]
[366052361,1750036239559,-151.0,0.00016438,2]
[366052362,1750036239569,-490.0,0.00016438,2]
[366052363,1750036239579,-151.0,0.00016438,2]
[366052364,1750036239590,-424.13722926,0.00016438,2]
[366052365,1750036239600,-490.0,0.00016438,2]
[366052366,1750036239610,-151.0,0.00016438,2]
[366052367,1750036239621,-490.0,0.00016438,2]
[366052368,1750036239630,-879.5,0.00016438,2]
[366052369,1750036239640,-490.0,0.00016438,2]
[366052370,1750036239650,-490.0,0.00016438,2]
[366052371,1750036239660,-490.0,0.00016438,2]
[366052372,1750036239670,-490.0,0.00016438,2]
[366052373,1750036239679,-490.0,0.00016438,2]
[366052374,1750036239689,-276.90554315,0.00016438,2]
[366052375,1750036239699,-1343.76,0.00016438,2]
[366052376,1750036239709,-490.0,0.00016438,2]
[366052377,1750036239719,-490.0,0.00016438,2]
[366052378,1750036239729,-490.0,0.00016438,2]
[366052379,1750036239739,-490.0,0.00016438,2]
[366052380,1750036239748,-490.0,0.00016438,2]
[366052381,1750036239758,-725.56,0.00016438,2]
[366052382,1750036239768,-198.415933,0.00016438,2]
[366052383,1750036239778,-490.0,0.00016438,2]
[366052384,1750036239789,-198.415933,0.00016438,2]
[366052385,1750036239802,-490.0,0.00016438,2]
[366052386,1750036239816,-490.0,0.00016438,2]
[366052387,1750036239825,-590.68,0.00016438,2]
[366052388,1750036239835,-151.0,0.00016438,2]
[366052389,1750036239847,-267.18590033,0.00016438,2]
[366052390,1750036239856,-490.0,0.00016438,2]
[366052391,1750036239866,-490.0,0.00016438,2]
[366052392,1750036239876,-490.0,0.00016438,2]
[366052393,1750036239888,-953.18,0.00016438,2]
[366052394,1750036239898,-490.0,0.00016438,2]
[366052395,1750036239908,-782.46,0.00016438,2]
[366052396,1750036239920,-542.37,0.00016438,2]
[366052397,1750036239930,-490.0,0.00016438,2]
[366052398,1750036239940,-490.0,0.00016438,2]
[366052399,1750036239951,-490.0,0.00016438,2]
[366052400,1750036239962,-987.33,0.00016438,2]
[366052401,1750036239972,-490.0,0.00016438,2]
[366052402,1750036239982,-1641.42,0.00016438,2]
[366052403,1750036239992,-463.34981449,0.00016438,2]
[366052404,1750036240002,-490.0,0.00016438,2]
[366052405,1750036240013,-608.18,0.00016438,2]
[366052406,1750036240024,-490.0,0.00016438,2]
[366052407,1750036240034,-574.8,0.00016438,2]
[366052408,1750036240044,-1288.31,0.00016438,2]
[366052409,1750036240055,-490.0,0.00016438,2]
[366052410,1750036240065,-490.0,0.00016438,2]
[366052411,1750036240074,-490.0,0.00016438,2]
[366052412,1750036240084,-490.0,0.00016438,2]
[366052413,1750036240094,-490.0,0.00016438,2]
[366052414,1750036240225,-490.0,0.00016438,2]
[366052415,1750036240235,-151.0,0.00016438,2]
[366052416,1750036240245,-151.0,0.00016438,2]
[366052417,1750036240255,-1050.8,0.00016438,2]
[366052418,1750036240265,-490.0,0.00016438,2]
[366052419,1750036240275,-490.0,0.00016438,2]
[366052420,1750036240284,-490.0,0.00016438,2]
[366052421,1750036240294,-490.0,0.00016438,2]
[366052422,1750036240303,-490.0,0.00016438,2]
[366052423,1750036240313,-490.0,0.00016438,2]
[366052424,1750036240323,-490.0,0.00016438,2]
[366052425,1750036240332,-490.0,0.00016438,2]
[366052426,1750036240341,-490.0,0.00016438,2]
[366052427,1750036240351,-1946.92,0.00016438,2]
[366052428,1750036240361,-730.13,0.00016438,2]
[366052429,1750036240371,-490.0,0.00016438,2]
[366052430,1750036240381,-386.47647736,0.00016438,2]
[366052431,1750036240390,-490.0,0.00016438,2]
[366052432,1750036240400,-490.0,0.00016438,2]
[366052433,1750036240410,-490.0,0.00016438,2]
[366052434,1750036240420,-586.08,0.00016438,2]
[366052435,1750036240430,-490.0,0.00016438,2]
[366052436,1750036240440,-490.0,0.00016438,2]
[366052437,1750036240450,-490.0,0.00016438,2]
[366052438,1750036240460,-905.18,0.00016438,2]
[366052439,1750036240469,-490.0,0.00016438,2]
[366052440,1750036240478,-151.0,0.00016438,2]
[366052441,1750036240488,-151.0,0.00016438,2]
[366052442,1750036240497,-151.0,0.00016438,2]
[366052443,1750036240507,-151.0,0.00016438,2]
[366052444,1750036240518,-151.0,0.00016438,2]
[366052445,1750036240527,-151.0,0.00016438,2]
[366052446,1750036240537,-151.0,0.00016438,2]
[366052447,1750036240547,-490.0,0.00016438,2]
[366052448,1750036240556,-775.9,0.00016438,2]
[366052449,1750036240566,-518.16,0.00016438,2]
[366052450,1750036240575,-556.62,0.00016438,2]
[366052451,1750036240585,-490.0,0.00016438,2]
[366052452,1750036240594,-490.0,0.00016438,2]
[366052453,1750036240604,-490.0,0.00016438,2]
[366052454,1750036240614,-490.0,0.00016438,2]
[366052455,1750036240623,-490.0,0.00016438,2]
[366052456,1750036240633,-490.0,0.00016438,2]
[366052457,1750036240643,-490.0,0.00016438,2]
[366052458,1750036240653,-490.0,0.00016438,2]
[366052459,1750036240663,-490.0,0.00016438,2]
[366052460,1750036240672,-490.0,0.00016438,2]
[366052461,1750036240682,-490.0,0.00016438,2]
[366052462,1750036240692,-490.0,0.00016438,2]
[366052463,1750036240702,-490.0,0.00016438,2]
[366052464,1750036240713,-490.0,0.00016438,2]
[366052465,1750036240723,-151.0,0.00016438,2]
[366052467,1750036240734,-1084.05,0.00016438,2]
[366052468,1750036240743,-151.0,0.00016438,2]
[366052469,1750036240753,-490.0,0.00016438,2]
[366052470,1750036240766,-490.0,0.00016438,2]
[366052471,1750036240776,-490.0,0.00016438,2]
[366052472,1750036240786,-151.0,0.00016438,2]
[366052473,1750036240795,-490.0,0.00016438,2]
[366052474,1750036240805,-174.067934,0.00016438,2]
[366052475,1750036240819,-490.0,0.00016438,2]
[366052476,1750036240829,-490.0,0.00016438,2]
[366052477,1750036240839,-174.067934,0.00016438,2]
[366052478,1750036240848,-749.09,0.00016438,2]
[366052479,1750036240859,-490.0,0.00016438,2]
[366052480,1750036240868,-151.0,0.00016438,2]
[366052481,1750036240878,-151.0,0.00016438,2]
[366052482,1750036240888,-151.56309,0.00016438,2]
[366052483,1750036240898,-490.0,0.00016438,2]
[366052484,1750036240908,-490.0,0.00016438,2]
[366052485,1750036240918,-490.0,0.00016438,2]
[366052486,1750036240927,-151.0,0.00016438,2]
[366052487,1750036240937,-490.0,0.00016438,2]
[366052488,1750036240947,-683.24,0.00016438,2]
[366052489,1750036240957,-546.29,0.00016438,2]
[366052490,1750036240967,-607.55,0.00016438,2]
[366052491,1750036240977,-490.0,0.00016438,2]
[366052492,1750036240986,-490.0,0.00016438,2]
[366052493,1750036240996,-490.0,0.00016438,2]
[366052494,1750036241006,-586.96,0.00016438,2]
[366052495,1750036241016,-553.46061882,0.00016438,2]
[366052496,1750036241026,-413.30830181,0.00016438,2]
[366052497,1750036241035,-490.0,0.00016438,2]
[366052498,1750036241045,-151.0,0.00016438,2]
[366052499,1750036241054,-976.92,0.00016438,2]
[366052500,1750036241064,-151.0,0.00016438,2]
[366052501,1750036241073,-490.0,0.00016438,2]
[366052502,1750036241082,-490.0,0.00016438,2]
[366052503,1750036241090,-932.773936,0.00016438,2]
[366052504,1750036241100,-932.773936,0.00016438,2]
[366052505,1750036241110,-932.773936,0.00016438,2]
[366052506,1750036241119,-932.773936,0.00016438,2]
[366052507,1750036241128,-490.0,0.00016438,2]
[366052508,1750036241137,-172.39921267,0.00016438,2]
[366052509,1750036241147,-196.128623,0.00016438,2]
[366052510,1750036241156,-196.128623,0.00016438,2]
[366052511,1750036241166,-490.0,0.00016438,2]
[366052512,1750036241175,-196.128623,0.00016438,2]
[366052513,1750036241184,-196.128623,0.00016438,2]
[366052514,1750036241193,-490.0,0.00016438,2]
[366052515,1750036241202,-1028.77,0.00016438,2]
[366052516,1750036241211,-490.0,0.00016438,2]
[366052517,1750036241220,-500.0,0.00016438,2]
[366052518,1750036241229,-490.0,0.00016438,2]
[366052519,1750036241238,-851.77,0.00016438,2]
[366052520,1750036241248,-490.0,0.00016438,2]
[366052521,1750036241257,-500.57,0.00016438,2]
[366052522,1750036241267,-490.0,0.00016438,2]
[366052523,1750036241277,-886.01,0.00016438,2]
[366052524,1750036241288,-490.0,0.00016438,2]
[366052525,1750036241298,-490.0,0.00016438,2]
[366052526,1750036241308,-490.0,0.00016438,2]
[366052527,1750036241318,-490.0,0.00016438,2]
[366052528,1750036241327,-490.0,0.00016438,2]
[366052529,1750036241337,-513.39,0.00016438,2]
[366052530,1750036241347,-751.9,0.00016438,2]
[366052531,1750036241356,-200.0,0.00016438,2]
[366052532,1750036241366,-200.0,0.00016438,2]
[366052533,1750036241376,-200.0,0.00016438,2]
[366052534,1750036241386,-200.0,0.00016438,2]
[366052535,1750036241396,-200.0,0.00016438,2]
[366052536,1750036241406,-490.0,0.00016438,2]
[366052537,1750036241415,-200.0,0.00016438,2]
[366052538,1750036241424,-490.0,0.00016438,2]
[366052539,1750036241435,-200.0,0.00016438,2]
[366052540,1750036241445,-200.0,0.00016438,2]
[366052541,1750036241455,-200.0,0.00016438,2]
[366052542,1750036241465,-490.0,0.00016438,2]
[366052543,1750036241474,-234.439008,0.00016438,2]
[366052544,1750036241484,-565.11,0.00016438,2]
[366052545,1750036241493,-646.87,0.00016438,2]
[366052546,1750036241502,-183.631882,0.00016438,2]
[366052547,1750036241512,-490.0,0.00016438,2]
[366052548,1750036241521,-490.0,0.00016438,2]
[366052549,1750036241531,-1823.84,0.00016438,2]
[366052550,1750036241541,-490.0,0.00016438,2]
[366052551,1750036241552,-592.34,0.00016438,2]
[366052552,1750036241563,-660.01,0.00016438,2]
[366052553,1750036241574,-490.0,0.00016438,2]
[366052554,1750036241586,-615.67129126,0.00016438,2]
[366052555,1750036241597,-159.843096,0.00016438,2]
[366052556,1750036241606,-558.97,0.00016438,2]
[366052557,1750036241617,-490.0,0.00016438,2]
[366052558,1750036241626,-425.38893316,0.00016438,2]
[366052559,1750036241636,-490.0,0.00016438,2]
[366052560,1750036241646,-490.0,0.00016438,2]
[366052561,1750036241656,-490.0,0.00016438,2]
[366052562,1750036241667,-490.0,0.00016438,2]
[366052563,1750036241677,-1468.18,0.00016438,2]
[366052564,1750036241686,-490.0,0.00016438,2]
[366052565,1750036241696,-490.0,0.00016438,2]
[366052566,1750036241706,-490.0,0.00016438,2]
[366052567,1750036241718,-318.51543686,0.00016438,2]
[366052568,1750036241728,-1461.23,0.00016438,2]
[366052569,1750036241738,-490.0,0.00016438,2]
[366052570,1750036241747,-490.0,0.00016438,2]
[366052571,1750036241756,-490.0,0.00016438,2]
[366052572,1750036241767,-490.0,0.00016438,2]
[366052573,1750036241776,-490.0,0.00016438,2]
[366052574,1750036241786,-153.817736,0.00016438,2]
[366052575,1750036241795,-151.0,0.00016438,2]
[366052576,1750036241805,-650.76,0.00016438,2]
[366052577,1750036241819,-490.0,0.00016438,2]
[366052578,1750036241829,-613.82,0.00016438,2]
[366052579,1750036241838,-1912.71,0.00016438,2]
[366052580,1750036241848,-717.14,0.00016438,2]
[366052581,1750036241858,-728.15,0.00016438,2]
[366052582,1750036241867,-300.0,0.00016438,2]
[366052583,1750036241877,-490.0,0.00016438,2]
[366052584,1750036241888,-490.0,0.00016438,2]
[366052585,1750036241898,-151.0,0.00016438,2]
[366052586,1750036241908,-672.87,0.00016438,2]
[366052587,1750036241918,-490.0,0.00016438,2]
[366052588,1750036241928,-1999.93,0.00016438,2]
[366052589,1750036241938,-490.0,0.00016438,2]
[366052590,1750036241947,-490.0,0.00016438,2]
[366052591,1750036241957,-490.0,0.00016438,2]
[366052592,1750036241967,-490.0,0.00016438,2]
[366052593,1750036241978,-490.0,0.00016438,2]
[366052594,1750036241987,-1374.12,0.00016438,2]
[366052595,1750036241997,-445.10985176,0.00016438,2]
[366052596,1750036242007,-490.0,0.00016438,2]
[366052597,1750036242017,-941.13,0.00016438,2]
[366052598,1750036242026,-1454.38,0.00016438,2]
[366052599,1750036242035,-1697.0,0.00016438,2]
[366052600,1750036242044,-524.84835426,0.00016438,2]
[366052601,1750036242053,-490.0,0.00016438,2]
[366052602,1750036242063,-1290.3,0.00016438,2]
[366052603,1750036242072,-151.0,0.00016438,2]
[366052604,1750036242082,-490.0,0.00016438,2]
[366052605,1750036242091,-151.0,0.00016438,2]
[366052606,1750036242100,-490.0,0.00016438,2]
[366052607,1750036242110,-490.0,0.00016438,2]
[366052608,1750036242119,-490.0,0.00016438,2]
[366052609,1750036242129,-3372.243191,0.00016438,2]
[366052610,1750036242139,-490.0,0.00016438,2]
[366052611,1750036242149,-556.2,0.00016438,2]
[366052612,1750036242159,-490.0,0.00016438,2]
[366052613,1750036242169,-151.0,0.00016438,2]
[366052614,1750036242179,-151.0,0.00016438,2]
[366052615,1750036242190,-490.0,0.00016438,2]
[366052616,1750036242201,-490.0,0.00016438,2]
[366052617,1750036242211,-490.0,0.00016438,2]
[366052618,1750036242222,-490.0,0.00016438,2]
[366052619,1750036242232,-731.4,0.00016438,2]
[366052620,1750036242242,-1184.62,0.00016438,2]
[366052621,1750036242252,-1667.87,0.00016438,2]
[366052622,1750036242262,-490.0,0.00016438,2]
[366052623,1750036242271,-988.87,0.00016438,2]
[366052624,1750036242281,-490.0,0.00016438,2]
[366052625,1750036242290,-490.0,0.00016438,2]
[366052626,1750036242300,-596.96,0.00016438,2]
[366052627,1750036242310,-490.0,0.00016438,2]
[366052628,1750036242319,-635.28,0.00016438,2]
[366052629,1750036242330,-490.0,0.00016438,2]
[366052630,1750036242340,-490.0,0.00016438,2]
[366052631,1750036242349,-490.0,0.00016438,2]
[366052632,1750036242359,-490.0,0.00016438,2]
[366052633,1750036242368,-490.0,0.00016438,2]
[366052634,1750036242378,-490.0,0.00016438,2]
[366052635,1750036242387,-1710.38,0.00016438,2]
[366052636,1750036242397,-158.98001232,0.00016438,2]
[366052637,1750036242408,-490.0,0.00016438,2]
[366052638,1750036242418,-490.0,0.00016438,2]
[366052639,1750036242427,-490.0,0.00016438,2]
[366052640,1750036242437,-776.17,0.00016438,2]
[366052641,1750036242446,-490.0,0.00016438,2]
[366052642,1750036242455,-490.0,0.00016438,2]
[366052643,1750036242465,-670.81,0.00016438,2]
[366052644,1750036242475,-349.9,0.00016438,2]
[366052645,1750036242485,-490.0,0.00016438,2]
[366052646,1750036242495,-490.1682735,0.00016438,2]
[366052647,1750036242504,-771.97,0.00016438,2]
[366052648,1750036242514,-490.0,0.00016438,2]
[366052649,1750036242523,-490.0,0.00016438,2]
[366052650,1750036242533,-490.0,0.00016438,2]
[366052651,1750036242543,-490.0,0.00016438,2]
[366052652,1750036242552,-490.0,0.00016438,2]
[366052653,1750036242562,-824.54,0.00016438,2]
[366052654,1750036242572,-152.964019,0.00016438,2]
[366052655,1750036242584,-490.0,0.00016438,2]
[366052656,1750036242594,-490.0,0.00016438,2]
[366052657,1750036242606,-508.1,0.00016438,2]
[366052658,1750036242616,-490.0,0.00016438,2]
[366052659,1750036242627,-490.0,0.00016438,2]
[366052660,1750036242637,-1354.57,0.00016438,2]
[366052661,1750036242647,-490.0,0.00016438,2]
[366052662,1750036242657,-490.0,0.00016438,2]
[366052663,1750036242667,-933.77,0.00016438,2]
[366052664,1750036242677,-490.75799134,0.00016438,2]
[366052665,1750036242687,-160.640192,0.00016438,2]
[366052666,1750036242696,-490.0,0.00016438,2]
[366052667,1750036242706,-490.0,0.00016438,2]
[366052668,1750036242717,-1618.76,0.00016438,2]
[366052669,1750036242727,-450.0,0.00016438,2]
[366052670,1750036242737,-490.0,0.00016438,2]
[366052671,1750036242748,-490.0,0.00016438,2]
[366052672,1750036242758,-490.0,0.00016438,2]
[366052673,1750036242768,-490.0,0.00016438,2]
[366052674,1750036242778,-713.31,0.00016438,2]
[366052675,1750036242788,-490.0,0.00016438,2]
[366052676,1750036242797,-490.0,0.00016438,2]
[366052677,1750036242808,-490.0,0.00016438,2]
[366052678,1750036242820,-490.0,0.00016438,2]
[366052679,1750036242830,-483.624507,0.00016438,2]
[366052680,1750036242839,-1381.76,0.00016438,2]
[366052681,1750036242849,-574.33,0.00016438,2]
[366052682,1750036242859,-152.297189,0.00016438,2]
[366052683,1750036242868,-490.0,0.00016438,2]
[366052684,1750036242878,-1483.89,0.00016438,2]
[366052685,1750036242889,-490.0,0.00016438,2]
[366052686,1750036242898,-490.0,0.00016438,2]
[366052687,1750036242908,-490.0,0.00016438,2]
[366052688,1750036242918,-490.0,0.00016438,2]
[366052689,1750036242928,-490.0,0.00016438,2]
[366052690,1750036242938,-490.0,0.00016438,2]
[366052691,1750036242948,-490.0,0.00016438,2]
[366052692,1750036242958,-1615.6,0.00016438,2]
[366052693,1750036242969,-279.551581,0.00016438,2]
[366052694,1750036242979,-490.0,0.00016438,2]
[366052695,1750036242989,-1316.19,0.00016438,2]
[366052696,1750036242999,-490.0,0.00016438,2]
[366052697,1750036243009,-490.0,0.00016438,2]
[366052698,1750036243020,-490.0,0.00016438,2]
[366052699,1750036243030,-490.0,0.00016438,2]
[366052700,1750036243039,-757.14,0.00016438,2]
[366052701,1750036243050,-490.0,0.00016438,2]
[366052702,1750036243059,-490.0,0.00016438,2]
[366052703,1750036243069,-490.0,0.00016438,2]
[366052704,1750036243079,-279.551581,0.00016438,2]
[366052705,1750036243089,-490.66587264,0.00016438,2]
[366052706,1750036243099,-870.28,0.00016438,2]
[366052707,1750036243108,-999.67,0.00016438,2]
[366052708,1750036243118,-734.09,0.00016438,2]
[366052709,1750036243128,-492.31576193,0.00016438,2]
[366052710,1750036243137,-490.0,0.00016438,2]
[366052712,1750036243146,-490.0,0.00016438,2]
[366052713,1750036243157,-956.08,0.00016438,2]
[366052715,1750036243167,-490.0,0.00016438,2]
[366052716,1750036243177,-490.0,0.00016438,2]
[366052717,1750036243187,-151.0,0.00016438,2]
[366052718,1750036243197,-490.0,0.00016438,2]
[366052719,1750036243207,-738.78,0.00016438,2]
[366052720,1750036243217,-490.0,0.00016438,2]
[366052721,1750036243228,-490.0,0.00016438,2]
[366052722,1750036243239,-490.0,0.00016438,2]
[366052723,1750036243250,-490.0,0.00016438,2]
[366052724,1750036243260,-1633.83,0.00016438,2]
[366052725,1750036243272,-490.0,0.00016438,2]
[366052726,1750036243282,-490.0,0.00016438,2]
[366052728,1750036243292,-490.0,0.00016438,2]
[366052729,1750036243302,-656.45,0.00016438,2]
[366052730,1750036243312,-1071.51,0.00016438,2]
[366052731,1750036243323,-511.46,0.00016438,2]
[366052732,1750036243332,-687.81,0.00016438,2]
[366052733,1750036243342,-490.0,0.00016438,2]
[366052734,1750036243352,-490.0,0.00016438,2]
[366052735,1750036243362,-490.0,0.00016438,2]
[366052736,1750036243371,-490.0,0.00016438,2]
[366052737,1750036243381,-491.20778612,0.00016438,2]
[366052738,1750036243392,-1585.73,0.00016438,2]
[366052739,1750036243402,-904.25,0.00016438,2]
[366052740,1750036243412,-826.07,0.00016438,2]
[366052741,1750036243423,-490.0,0.00016438,2]
[366052742,1750036243432,-490.0,0.00016438,2]
[366052743,1750036243442,-1786.06,0.00016438,2]
[366052744,1750036243451,-1903.23,0.00016438,2]
[366052745,1750036243461,-490.0,0.00016438,2]
[366052746,1750036243470,-490.0,0.00016438,2]
[366052747,1750036243479,-490.0,0.00016438,2]
[366052748,1750036243488,-151.0,0.00016438,2]
[366052749,1750036243498,-490.0,0.00016438,2]
[366052750,1750036243508,-151.0,0.00016438,2]
[366052751,1750036243519,-490.0,0.00016438,2]
[366052752,1750036243528,-1273.24,0.00016438,2]
[366052753,1750036243538,-490.0,0.00016438,2]
[366052754,1750036243548,-555.79,0.00016438,2]
[366052755,1750036243558,-490.0,0.00016438,2]
[366052756,1750036243567,-490.0,0.00016438,2]
[366052757,1750036243578,-1108.38,0.00016438,2]
[366052758,1750036243589,-151.0,0.00016438,2]
[366052759,1750036243598,-1738.47,0.00016438,2]
[366052760,1750036243609,-701.75,0.00016438,2]
[366052761,1750036243619,-151.0,0.00016438,2]
[366052762,1750036243629,-490.0,0.00016438,2]
[366052763,1750036243638,-310.34484577,0.00016438,2]
[366052764,1750036243648,-490.0,0.00016438,2]
[366052765,1750036243657,-490.0,0.00016438,2]
[366052766,1750036243667,-1104.91,0.00016438,2]
[366052768,1750036243676,-490.0,0.00016438,2]
[366052770,1750036243686,-151.0,0.00016438,2]
[366052771,1750036243695,-490.0,0.00016438,2]
[366052772,1750036243705,-490.0,0.00016438,2]
[366052773,1750036243714,-2004.14,0.00016438,2]
[366052775,1750036243724,-490.0,0.00016438,2]
[366052776,1750036243734,-490.0,0.00016438,2]